[Event "Late-Titled-Tuesday-Blitz-February-20-2024"]
[Site "Chess.com"]
[Date "2024.02.20"]
[Round "4"]
[White "Kopytkin"]
[Black "NoHeThTo"]
[Result "0-1"]
[WhiteElo "2399"]
[BlackElo "2615"]
[TimeControl "180+1"]
[EndTime "14:39:45 PST"]
[Termination "NoHeThTo won on time"]

1. d4 {[%clk 0:03:00.9]} 1... Nf6 {[%clk 0:03:00.3]} 2. Bg5 {[%clk 0:03:00.5]}
2... Ne4 {[%clk 0:03:00.4]} 3. Bf4 {[%clk 0:03:00.7]} 3... c5 {[%clk 0:03:00.9]}
4. e3 {[%clk 0:02:59.4]} 4... d5 {[%clk 0:02:57.5]} 5. Bd3 {[%clk 0:02:58.6]}
5... cxd4 {[%clk 0:02:53.7]} 6. exd4 {[%clk 0:02:59.5]} 6... Nc6 {[%clk
0:02:53]} 7. c3 {[%clk 0:02:59.2]} 7... Bf5 {[%clk 0:02:40.4]} 8. h4 {[%clk
0:02:54.4]} 8... e6 {[%clk 0:02:39.9]} 9. g4 {[%clk 0:02:44.2]} 9... Bg6 {[%clk
0:02:38.6]} 10. h5 {[%clk 0:02:44.4]} 10... Qf6 {[%clk 0:02:37.5]} 11. Nh3
{[%clk 0:02:17.4]} 11... Nxf2 {[%clk 0:02:19]} 12. Nxf2 {[%clk 0:01:59.7]} 12...
Qxf4 {[%clk 0:02:10.6]} 13. hxg6 {[%clk 0:01:59.6]} 13... O-O-O {[%clk
0:02:08.5]} 14. Rxh7 {[%clk 0:01:50.2]} 14... Bd6 {[%clk 0:02:02.9]} 15. Na3
{[%clk 0:01:34.5]} 15... fxg6 {[%clk 0:01:44.6]} 16. Bxg6 {[%clk 0:01:12.5]}
16... Rxh7 {[%clk 0:01:31.8]} 17. Bxh7 {[%clk 0:01:12.3]} 17... Rh8 {[%clk
0:01:32.3]} 18. Qd3 {[%clk 0:00:54.3]} 18... Rf8 {[%clk 0:01:13.1]} 19. Qe2
{[%clk 0:00:51.7]} 19... Qg3 {[%clk 0:01:12.2]} 20. Nb5 {[%clk 0:00:42.7]} 20...
Qg1+ {[%clk 0:01:07.5]} 21. Qf1 {[%clk 0:00:35.6]} 21... Qxf1+ {[%clk
0:01:05.4]} 22. Kxf1 {[%clk 0:00:36.5]} 22... Bg3 {[%clk 0:01:05.7]} 23. Kg2
{[%clk 0:00:36.8]} 23... Bxf2 {[%clk 0:01:03.6]} 24. Rf1 {[%clk 0:00:36.8]}
24... a6 {[%clk 0:00:49.9]} 25. Rxf2 {[%clk 0:00:20.3]} 25... Rxf2+ {[%clk
0:00:48]} 26. Kxf2 {[%clk 0:00:21.2]} 26... axb5 {[%clk 0:00:48.6]} 27. b4
{[%clk 0:00:21.4]} 27... Kc7 {[%clk 0:00:46]} 28. Bd3 {[%clk 0:00:20.2]} 28...
Kb6 {[%clk 0:00:21]} 29. Ke3 {[%clk 0:00:19.7]} 29... Ne7 {[%clk 0:00:19.9]} 30.
Kf4 {[%clk 0:00:18.9]} 30... Nc6 {[%clk 0:00:20.2]} 31. a3 {[%clk 0:00:15]}
31... Kc7 {[%clk 0:00:15.1]} 32. Bf1 {[%clk 0:00:09.6]} 32... Kd6 {[%clk
0:00:14.5]} 33. Bg2 {[%clk 0:00:07.8]} 33... e5+ {[%clk 0:00:10.8]} 34. Ke3
{[%clk 0:00:08]} 34... exd4+ {[%clk 0:00:10.8]} 35. cxd4 {[%clk 0:00:08.9]}
35... g5 {[%clk 0:00:11.3]} 36. Bf1 {[%clk 0:00:08.8]} 36... Na7 {[%clk
0:00:09.9]} 37. Bd3 {[%clk 0:00:08.6]} 37... Kc6 {[%clk 0:00:10.4]} 38. Bg6
{[%clk 0:00:08.6]} 38... Nc8 {[%clk 0:00:10.4]} 39. Be8+ {[%clk 0:00:08.4]}
39... Kb6 {[%clk 0:00:10.1]} 40. Bf7 {[%clk 0:00:08.5]} 40... Kc6 {[%clk
0:00:09.8]} 41. Be8+ {[%clk 0:00:08.5]} 41... Kb6 {[%clk 0:00:10.4]} 42. Bf7
{[%clk 0:00:08.7]} 42... Ne7 {[%clk 0:00:11.1]} 43. Be6 {[%clk 0:00:08.2]} 43...
Kc6 {[%clk 0:00:11]} 44. Bf5 {[%clk 0:00:08.3]} 44... Kd6 {[%clk 0:00:09.8]} 45.
Bd3 {[%clk 0:00:08.4]} 45... Kc6 {[%clk 0:00:09]} 46. Bf5 {[%clk 0:00:08.5]}
46... Ng8 {[%clk 0:00:09.4]} 47. Bg6 {[%clk 0:00:06.9]} 47... Nf6 {[%clk
0:00:09.9]} 48. Bf5 {[%clk 0:00:07.4]} 48... Kd6 {[%clk 0:00:10.1]} 49. Kd3
{[%clk 0:00:07.7]} 49... Ne8 {[%clk 0:00:10.2]} 50. Kc3 {[%clk 0:00:07.7]} 50...
Nc7 {[%clk 0:00:10.6]} 51. Bd3 {[%clk 0:00:07.7]} 51... Ke6 {[%clk 0:00:09.5]}
52. Kb3 {[%clk 0:00:07]} 52... Ke7 {[%clk 0:00:10]} 53. a4 {[%clk 0:00:07]}
53... Kd6 {[%clk 0:00:10.5]} 54. a5 {[%clk 0:00:07]} 54... Kc6 {[%clk
0:00:10.1]} 55. Kc3 {[%clk 0:00:07.4]} 55... Ne8 {[%clk 0:00:10.4]} 56. Bf5
{[%clk 0:00:07.8]} 56... Nd6 {[%clk 0:00:10.1]} 57. Bd3 {[%clk 0:00:08]} 57...
Nc4 {[%clk 0:00:10.5]} 58. Bc2 {[%clk 0:00:07.7]} 58... Ne3 {[%clk 0:00:10.5]}
59. Bf5 {[%clk 0:00:07.5]} 59... Nxf5 {[%clk 0:00:10.5]} 60. gxf5 {[%clk
0:00:07.5]} 60... Kd6 {[%clk 0:00:11]} 61. Kd3 {[%clk 0:00:07.8]} 61... Ke7
{[%clk 0:00:11.5]} 62. Ke3 {[%clk 0:00:02]} 62... Kf6 {[%clk 0:00:11.8]} 63. Kf3
{[%clk 0:00:02.4]} 63... Kxf5 {[%clk 0:00:12]} 64. Ke3 {[%clk 0:00:03.3]} 64...
g4 {[%clk 0:00:12.4]} 65. Kd3 {[%clk 0:00:03.5]} 65... Kf4 {[%clk 0:00:13]} 66.
Ke2 {[%clk 0:00:03.8]} 66... Ke4 {[%clk 0:00:13.3]} 67. a6 {[%clk 0:00:03.8]}
67... bxa6 {[%clk 0:00:13.3]} 0-1

[Event "Late-Titled-Tuesday-Blitz-February-20-2024"]
[Site "Chess.com"]
[Date "2024.02.20"]
[Round "4"]
[White "Alex_Sahakyan2006"]
[Black "ValeriyGrinev"]
[Result "1-0"]
[WhiteElo "2835"]
[BlackElo "2559"]
[TimeControl "180+1"]
[EndTime "14:39:48 PST"]
[Termination "Alex_Sahakyan2006 won by resignation"]

1. e4 {[%clk 0:03:00.9]} 1... c5 {[%clk 0:02:59.6]} 2. Nc3 {[%clk 0:03:01.1]}
2... e6 {[%clk 0:02:58]} 3. Nf3 {[%clk 0:03:01]} 3... a6 {[%clk 0:02:57.7]} 4.
g3 {[%clk 0:03:00.6]} 4... b5 {[%clk 0:02:57]} 5. Bg2 {[%clk 0:03:01]} 5... Bb7
{[%clk 0:02:57.3]} 6. d3 {[%clk 0:03:01.7]} 6... d6 {[%clk 0:02:56.2]} 7. O-O
{[%clk 0:03:01.9]} 7... Be7 {[%clk 0:02:56.2]} 8. Re1 {[%clk 0:02:59.3]} 8...
Nd7 {[%clk 0:02:54.8]} 9. h4 {[%clk 0:02:51]} 9... Ngf6 {[%clk 0:02:53.8]} 10.
e5 {[%clk 0:02:41.8]} 10... dxe5 {[%clk 0:02:53.2]} 11. Nxe5 {[%clk 0:02:36]}
11... Bxg2 {[%clk 0:02:54.1]} 12. Kxg2 {[%clk 0:02:36.6]} 12... Nxe5 {[%clk
0:02:52.1]} 13. Rxe5 {[%clk 0:02:37.5]} 13... Qc7 {[%clk 0:02:49.7]} 14. Qf3
{[%clk 0:02:33.4]} 14... O-O {[%clk 0:02:37.2]} 15. Re1 {[%clk 0:02:26.2]} 15...
Rfd8 {[%clk 0:02:32.1]} 16. Bf4 {[%clk 0:02:23.3]} 16... Qb6 {[%clk 0:02:29.9]}
17. a4 {[%clk 0:02:19.8]} 17... b4 {[%clk 0:02:22.5]} 18. a5 {[%clk 0:02:18.7]}
18... Qa7 {[%clk 0:02:16.7]} 19. Ne4 {[%clk 0:02:12.6]} 19... Nxe4 {[%clk
0:02:14.1]} 20. Rxe4 {[%clk 0:02:09.2]} 20... Bf6 {[%clk 0:02:14.4]} 21. Bg5
{[%clk 0:02:04.2]} 21... Bxb2 {[%clk 0:02:03.2]} 22. Rb1 {[%clk 0:01:54.8]}
22... Bd4 {[%clk 0:02:02.2]} 23. Bxd8 {[%clk 0:01:49.8]} 23... Rxd8 {[%clk
0:02:03.1]} 24. h5 {[%clk 0:01:43.1]} 24... Qc7 {[%clk 0:02:00.6]} 25. h6 {[%clk
0:01:36.9]} 25... g6 {[%clk 0:01:45.8]} 26. Rxd4 {[%clk 0:01:35.8]} 26... Rxd4
{[%clk 0:01:28.8]} 27. Qf6 {[%clk 0:01:34.3]} 27... Kf8 {[%clk 0:01:28.4]} 28.
Qh8+ {[%clk 0:01:27]} 28... Ke7 {[%clk 0:01:28.4]} 29. Qxh7 {[%clk 0:01:27.9]}
29... Qe5 {[%clk 0:01:27.8]} 30. Qg8 {[%clk 0:01:11]} 30... Rd8 {[%clk
0:01:24.3]} 31. h7 {[%clk 0:01:07.4]} 31... Qh8 {[%clk 0:01:20.8]} 32. Qxh8
{[%clk 0:01:07.2]} 32... Rxh8 {[%clk 0:01:20.8]} 33. Rh1 {[%clk 0:00:44.4]}
33... Kf6 {[%clk 0:00:52.8]} 34. Kf3 {[%clk 0:00:43.6]} 34... Ke5 {[%clk
0:00:46.9]} 35. Ke3 {[%clk 0:00:35.8]} 35... Kf5 {[%clk 0:00:39.6]} 36. Rh4
{[%clk 0:00:24.5]} 36... e5 {[%clk 0:00:31.6]} 37. Kd2 {[%clk 0:00:17.8]} 37...
g5 {[%clk 0:00:31.1]} 38. Rh6 {[%clk 0:00:17.7]} 38... g4 {[%clk 0:00:26.9]} 39.
Ke3 {[%clk 0:00:15.3]} 39... Kg5 {[%clk 0:00:26.6]} 40. Rxa6 {[%clk 0:00:14.1]}
40... Rxh7 {[%clk 0:00:26.2]} 41. Rc6 {[%clk 0:00:15]} 41... Rh1 {[%clk
0:00:20.4]} 42. Rxc5 {[%clk 0:00:15.1]} 42... Kf6 {[%clk 0:00:19.2]} 43. a6
{[%clk 0:00:12.7]} 43... Re1+ {[%clk 0:00:19.6]} 44. Kd2 {[%clk 0:00:12]} 44...
Ra1 {[%clk 0:00:20.5]} 45. Rc6+ {[%clk 0:00:11.1]} 45... Kf5 {[%clk 0:00:20.4]}
46. Rb6 {[%clk 0:00:10.6]} 46... Ra4 {[%clk 0:00:17.3]} 47. Kc1 {[%clk
0:00:09.7]} 47... e4 {[%clk 0:00:17.6]} 48. Rb5+ {[%clk 0:00:09.4]} 48... Ke6
{[%clk 0:00:17.8]} 49. dxe4 {[%clk 0:00:06.5]} 49... Rxa6 {[%clk 0:00:18.3]} 50.
Rxb4 {[%clk 0:00:07.4]} 50... Ra1+ {[%clk 0:00:18.7]} 51. Kd2 {[%clk 0:00:07.7]}
51... Rf1 {[%clk 0:00:19.3]} 52. Ke2 {[%clk 0:00:08.2]} 52... Rc1 {[%clk
0:00:19.9]} 53. Rc4 {[%clk 0:00:08.3]} 53... Ke5 {[%clk 0:00:20.3]} 54. Ke3
{[%clk 0:00:08.4]} 54... Re1+ {[%clk 0:00:20.3]} 55. Kd2 {[%clk 0:00:09]} 55...
Rf1 {[%clk 0:00:20.9]} 56. Ke2 {[%clk 0:00:09.3]} 56... Rc1 {[%clk 0:00:21.1]}
57. Rc7 {[%clk 0:00:09.4]} 57... Kxe4 {[%clk 0:00:20.3]} 58. Rxf7 {[%clk
0:00:08.4]} 58... Rxc2+ {[%clk 0:00:20.2]} 59. Kf1 {[%clk 0:00:09.3]} 59... Kd3
{[%clk 0:00:15.2]} 60. Rf4 {[%clk 0:00:10.2]} 60... Rc1+ {[%clk 0:00:15.5]} 61.
Kg2 {[%clk 0:00:10.6]} 61... Rc7 {[%clk 0:00:15.5]} 62. Rxg4 {[%clk 0:00:11]}
62... Ke2 {[%clk 0:00:16.4]} 63. Re4+ {[%clk 0:00:11.3]} 63... Kd3 {[%clk
0:00:16.9]} 64. Re3+ {[%clk 0:00:12]} 64... Kd4 {[%clk 0:00:17.2]} 65. Re1
{[%clk 0:00:12.4]} 65... Rf7 {[%clk 0:00:17.1]} 66. g4 {[%clk 0:00:12.6]} 66...
Kd3 {[%clk 0:00:16.4]} 67. Kg3 {[%clk 0:00:12.9]} 67... Kd2 {[%clk 0:00:17.1]}
68. Re6 {[%clk 0:00:13.4]} 68... Kd3 {[%clk 0:00:17.7]} 69. f4 {[%clk 0:00:14]}
69... Kd4 {[%clk 0:00:18.6]} 70. f5 {[%clk 0:00:14.7]} 70... Kd5 {[%clk
0:00:19.5]} 71. Re1 {[%clk 0:00:15.1]} 71... Ra7 {[%clk 0:00:18.9]} 72. Kf4
{[%clk 0:00:15.3]} 72... Ra3 {[%clk 0:00:19.8]} 73. Kg5 {[%clk 0:00:15.5]} 73...
Ra2 {[%clk 0:00:19.4]} 74. Kf6 {[%clk 0:00:15.9]} 74... Rh2 {[%clk 0:00:20.3]}
75. g5 {[%clk 0:00:16.3]} 75... Rg2 {[%clk 0:00:20.6]} 76. g6 {[%clk 0:00:16.2]}
1-0

[Event "Late-Titled-Tuesday-Blitz-February-20-2024"]
[Site "Chess.com"]
[Date "2024.02.20"]
[Round "4"]
[White "maxip32"]
[Black "zajka-molotok"]
[Result "0-1"]
[WhiteElo "2644"]
[BlackElo "2525"]
[TimeControl "180+1"]
[EndTime "14:39:53 PST"]
[Termination "zajka-molotok won by resignation"]

1. e4 {[%clk 0:03:00.9]} 1... c5 {[%clk 0:02:59.5]} 2. Nf3 {[%clk 0:03:01]} 2...
Nc6 {[%clk 0:02:59.5]} 3. Bb5 {[%clk 0:03:00.7]} 3... g6 {[%clk 0:02:59.1]} 4.
Bxc6 {[%clk 0:03:00.9]} 4... dxc6 {[%clk 0:03:00]} 5. O-O {[%clk 0:03:01.3]}
5... Bg7 {[%clk 0:02:59.7]} 6. d3 {[%clk 0:03:01.9]} 6... Nf6 {[%clk 0:02:46.1]}
7. Nc3 {[%clk 0:03:01.3]} 7... O-O {[%clk 0:02:44.5]} 8. h3 {[%clk 0:03:01.7]}
8... Nd7 {[%clk 0:02:40.3]} 9. Be3 {[%clk 0:03:02.6]} 9... e5 {[%clk 0:02:39]}
10. Qd2 {[%clk 0:03:03.5]} 10... Qe7 {[%clk 0:02:34.9]} 11. a3 {[%clk
0:03:00.8]} 11... a5 {[%clk 0:02:33.3]} 12. Nh2 {[%clk 0:02:57.9]} 12... Rd8
{[%clk 0:02:22.6]} 13. Bh6 {[%clk 0:02:54.7]} 13... Bh8 {[%clk 0:02:17.4]} 14.
Ng4 {[%clk 0:02:51.2]} 14... Nf8 {[%clk 0:02:07.6]} 15. f4 {[%clk 0:02:44.8]}
15... Bxg4 {[%clk 0:02:04]} 16. hxg4 {[%clk 0:02:44.6]} 16... exf4 {[%clk
0:02:02.7]} 17. Rxf4 {[%clk 0:02:44.5]} 17... Ne6 {[%clk 0:01:59.7]} 18. Rff1
{[%clk 0:02:43.3]} 18... Bd4+ {[%clk 0:01:53.5]} 19. Be3 {[%clk 0:02:42.9]}
19... Qg5 {[%clk 0:01:49.7]} 20. Rf3 {[%clk 0:02:35.2]} 20... Qxg4 {[%clk
0:01:48.4]} 21. Raf1 {[%clk 0:02:33.7]} 21... Ng5 {[%clk 0:01:36.8]} 22. Rf6
{[%clk 0:02:22]} 22... Nh3+ {[%clk 0:01:18.3]} 23. Kh2 {[%clk 0:01:59.6]} 23...
Be5+ {[%clk 0:01:00.6]} 24. Kh1 {[%clk 0:01:56.4]} 24... Bxf6 {[%clk 0:00:45.1]}
25. Rxf6 {[%clk 0:01:57.3]} 25... Qh4 {[%clk 0:00:45.3]} 26. Rf1 {[%clk
0:01:57.2]} 26... Nf2+ {[%clk 0:00:39.9]} 27. Kg1 {[%clk 0:01:56.4]} 27... Ng4
{[%clk 0:00:40.5]} 28. Bf4 {[%clk 0:01:54.4]} 28... c4 {[%clk 0:00:36.5]} 29. d4
{[%clk 0:01:53.8]} 29... Rd7 {[%clk 0:00:28.1]} 30. g3 {[%clk 0:01:53.7]} 30...
Qh3 {[%clk 0:00:26.5]} 31. d5 {[%clk 0:01:47]} 31... Re8 {[%clk 0:00:24]} 32.
Qg2 {[%clk 0:01:37.8]} 32... Qxg2+ {[%clk 0:00:23.2]} 33. Kxg2 {[%clk
0:01:38.7]} 33... cxd5 {[%clk 0:00:21.2]} 34. exd5 {[%clk 0:01:39.6]} 34... Ne3+
{[%clk 0:00:19.5]} 35. Bxe3 {[%clk 0:01:39.1]} 35... Rxe3 {[%clk 0:00:20.4]} 36.
Kf2 {[%clk 0:01:36.2]} 36... Re5 {[%clk 0:00:19.6]} 37. Rd1 {[%clk 0:01:35]}
37... f5 {[%clk 0:00:18.1]} 38. Kf3 {[%clk 0:01:34.2]} 38... Kf7 {[%clk
0:00:17.6]} 39. a4 {[%clk 0:01:30.5]} 39... Kf6 {[%clk 0:00:16.9]} 40. Rd4
{[%clk 0:01:30.7]} 40... h5 {[%clk 0:00:16.5]} 41. Rxc4 {[%clk 0:01:30.7]} 41...
g5 {[%clk 0:00:14.9]} 42. Rc5 {[%clk 0:01:28.9]} 42... Rd6 {[%clk 0:00:13.6]}
43. Rxa5 {[%clk 0:01:26.9]} 43... h4 {[%clk 0:00:12.1]} 44. gxh4 {[%clk
0:01:26.3]} 44... gxh4 {[%clk 0:00:13]} 45. Rb5 {[%clk 0:01:26]} 45... h3 {[%clk
0:00:11]} 46. Rxb7 {[%clk 0:01:25.7]} 46... Kg5 {[%clk 0:00:08.6]} 47. Rh7
{[%clk 0:01:23.3]} 47... Rh6 {[%clk 0:00:08.2]} 48. Rxh6 {[%clk 0:01:22.8]}
48... Kxh6 {[%clk 0:00:09.1]} 49. d6 {[%clk 0:01:21.2]} 49... h2 {[%clk
0:00:08.3]} 50. Kg2 {[%clk 0:01:21.4]} 50... Re6 {[%clk 0:00:05.4]} 51. Kxh2
{[%clk 0:01:17.9]} 51... Rxd6 {[%clk 0:00:05.7]} 52. a5 {[%clk 0:01:05.9]} 52...
Rd2+ {[%clk 0:00:05.2]} 53. Kg3 {[%clk 0:01:00.2]} 53... Rxc2 {[%clk 0:00:06.1]}
54. a6 {[%clk 0:00:52.1]} 54... Rc1 {[%clk 0:00:06.1]} 55. Nb5 {[%clk
0:00:45.2]} 55... Ra1 {[%clk 0:00:06]} 56. a7 {[%clk 0:00:45.3]} 56... Kg5
{[%clk 0:00:05.6]} 57. Kf3 {[%clk 0:00:45.7]} 57... Ra5 {[%clk 0:00:04.6]} 58.
b4 {[%clk 0:00:44.1]} 58... Ra4 {[%clk 0:00:04.4]} 59. Ke3 {[%clk 0:00:39.1]}
59... Kg4 {[%clk 0:00:04.1]} 60. Kf2 {[%clk 0:00:24.7]} 60... f4 {[%clk
0:00:04.4]} 61. Kg2 {[%clk 0:00:25]} 61... Ra2+ {[%clk 0:00:04.5]} 62. Kf1
{[%clk 0:00:25.2]} 62... f3 {[%clk 0:00:05]} 63. Nd4 {[%clk 0:00:20.5]} 63...
Rxa7 {[%clk 0:00:04.2]} 64. b5 {[%clk 0:00:20.9]} 64... Kg3 {[%clk 0:00:03.2]}
65. Nf5+ {[%clk 0:00:20.9]} 65... Kf4 {[%clk 0:00:03.7]} 66. Nd4 {[%clk
0:00:20.6]} 66... Ra1+ {[%clk 0:00:04.1]} 67. Kf2 {[%clk 0:00:20.7]} 67... Ra2+
{[%clk 0:00:04.8]} 68. Kf1 {[%clk 0:00:19.8]} 68... Rb2 {[%clk 0:00:04.8]} 69.
Ke1 {[%clk 0:00:19.4]} 69... Ke4 {[%clk 0:00:04.9]} 0-1

[Event "Late-Titled-Tuesday-Blitz-February-20-2024"]
[Site "Chess.com"]
[Date "2024.02.20"]
[Round "4"]
[White "Hananmo"]
[Black "Hasangatin_Ramil"]
[Result "0-1"]
[WhiteElo "2520"]
[BlackElo "2677"]
[TimeControl "180+1"]
[EndTime "14:39:54 PST"]
[Termination "Hasangatin_Ramil won by resignation"]

1. e4 {[%clk 0:02:59.5]} 1... d5 {[%clk 0:03:00]} 2. exd5 {[%clk 0:02:58.5]}
2... Qxd5 {[%clk 0:03:00.9]} 3. Nc3 {[%clk 0:02:58.9]} 3... Qd6 {[%clk
0:03:01.5]} 4. d4 {[%clk 0:02:57.9]} 4... Nf6 {[%clk 0:03:01.8]} 5. Nf3 {[%clk
0:02:55.8]} 5... a6 {[%clk 0:03:00.9]} 6. Be2 {[%clk 0:02:42.1]} 6... b5 {[%clk
0:03:00.7]} 7. O-O {[%clk 0:02:40.6]} 7... Bb7 {[%clk 0:03:01.2]} 8. Bg5 {[%clk
0:02:37.9]} 8... e6 {[%clk 0:03:01.5]} 9. Bh4 {[%clk 0:02:30.9]} 9... Nbd7
{[%clk 0:02:59.2]} 10. Bg3 {[%clk 0:02:30.2]} 10... Qb6 {[%clk 0:02:57.2]} 11.
a4 {[%clk 0:02:24.1]} 11... b4 {[%clk 0:02:56.6]} 12. a5 {[%clk 0:02:24.2]}
12... Qa7 {[%clk 0:02:56.5]} 13. Na4 {[%clk 0:02:23]} 13... Bd6 {[%clk
0:02:53.2]} 14. Ne5 {[%clk 0:02:03]} 14... O-O {[%clk 0:02:46.5]} 15. Qd2 {[%clk
0:01:52.9]} 15... Rab8 {[%clk 0:02:41.7]} 16. Rad1 {[%clk 0:01:50.7]} 16... Ne4
{[%clk 0:02:36]} 17. Nxd7 {[%clk 0:01:15.4]} 17... Nxd2 {[%clk 0:02:34.5]} 18.
Rxd2 {[%clk 0:01:16.3]} 18... Bc6 {[%clk 0:02:27]} 19. Nxb8 {[%clk 0:01:07.8]}
19... Bxa4 {[%clk 0:02:25.3]} 20. Nxa6 {[%clk 0:01:07.9]} 20... Bc6 {[%clk
0:02:07.1]} 21. Bxd6 {[%clk 0:01:05.1]} 21... cxd6 {[%clk 0:02:07.9]} 22. Nxb4
{[%clk 0:01:05.6]} 22... Ba8 {[%clk 0:02:00.4]} 23. a6 {[%clk 0:01:05.6]} 23...
Rb8 {[%clk 0:01:58.4]} 24. c3 {[%clk 0:01:06]} 24... g5 {[%clk 0:01:48.9]} 25.
Ra1 {[%clk 0:01:03.3]} 25... Kg7 {[%clk 0:01:43.8]} 26. Bf3 {[%clk 0:01:01.5]}
26... Bxf3 {[%clk 0:01:39.5]} 27. gxf3 {[%clk 0:01:01.2]} 27... Rc8 {[%clk
0:01:39.9]} 28. Ra5 {[%clk 0:01:00.1]} 28... Kf6 {[%clk 0:01:35.3]} 29. Rb5
{[%clk 0:00:59.7]} 29... Rc7 {[%clk 0:01:35.7]} 30. Rd1 {[%clk 0:00:59.2]} 30...
Qa8 {[%clk 0:01:31.6]} 31. Rd3 {[%clk 0:00:54.9]} 31... Ra7 {[%clk 0:01:31.2]}
32. Ra5 {[%clk 0:00:52.9]} 32... Qc8 {[%clk 0:01:28.9]} 33. d5 {[%clk
0:00:51.8]} 33... Qc4 {[%clk 0:01:23.3]} 34. Rd4 {[%clk 0:00:51.5]} 34... Qe2
{[%clk 0:01:23.3]} 35. Kg2 {[%clk 0:00:47.7]} 35... e5 {[%clk 0:01:00.3]} 36.
Re4 {[%clk 0:00:39.5]} 36... Qxb2 {[%clk 0:01:00.1]} 37. Nc6 {[%clk 0:00:39.8]}
37... Ra8 {[%clk 0:01:00]} 38. a7 {[%clk 0:00:34.3]} 38... Qxc3 {[%clk 0:01:00]}
39. Rb4 {[%clk 0:00:34.8]} 39... h5 {[%clk 0:00:49.3]} 40. h3 {[%clk 0:00:29.8]}
40... g4 {[%clk 0:00:37.8]} 41. hxg4 {[%clk 0:00:28.9]} 41... hxg4 {[%clk
0:00:38.7]} 42. Rxg4 {[%clk 0:00:28.1]} 42... Qb3 {[%clk 0:00:31.8]} 43. Rb4
{[%clk 0:00:24.5]} 43... Rg8+ {[%clk 0:00:27.7]} 44. Rg4 {[%clk 0:00:23.7]}
44... Ra8 {[%clk 0:00:23.1]} 45. Kg3 {[%clk 0:00:21.1]} 45... Qd3 {[%clk
0:00:17]} 46. Kg2 {[%clk 0:00:20.2]} 46... Qd1 {[%clk 0:00:13.9]} 47. Rb4 {[%clk
0:00:17.3]} 47... Rg8+ {[%clk 0:00:12.8]} 48. Rg4 {[%clk 0:00:17.8]} 48... Ra8
{[%clk 0:00:07.7]} 49. Nb8 {[%clk 0:00:18.1]} 49... e4 {[%clk 0:00:06.2]} 50.
Rxe4 {[%clk 0:00:12.2]} 50... Qd2 {[%clk 0:00:06.2]} 51. Rg4 {[%clk 0:00:09.3]}
51... Qxa5 {[%clk 0:00:04.7]} 52. Nd7+ {[%clk 0:00:09.4]} 52... Ke7 {[%clk
0:00:04.2]} 53. Nb8 {[%clk 0:00:07.7]} 53... Qb5 {[%clk 0:00:02.7]} 54. Nc6+
{[%clk 0:00:08.6]} 54... Kf6 {[%clk 0:00:02.1]} 55. Rg5 {[%clk 0:00:09.5]} 55...
Kxg5 {[%clk 0:00:02]} 56. Nd4 {[%clk 0:00:10.2]} 56... Kf6 {[%clk 0:00:02.1]}
57. Ne2 {[%clk 0:00:11.1]} 57... Qb7 {[%clk 0:00:00.7]} 58. Ng3 {[%clk 0:00:12]}
58... Qxa7 {[%clk 0:00:01.6]} 59. Ne4+ {[%clk 0:00:12.6]} 59... Ke7 {[%clk
0:00:02.2]} 60. Ng3 {[%clk 0:00:13.5]} 60... Kd7 {[%clk 0:00:03.1]} 61. Nf5
{[%clk 0:00:14.3]} 61... Kc7 {[%clk 0:00:04]} 62. Nd4 {[%clk 0:00:15.2]} 62...
Kb6 {[%clk 0:00:04.9]} 63. Nb3 {[%clk 0:00:15.6]} 63... Kb5 {[%clk 0:00:05.8]}
64. Nd2 {[%clk 0:00:16.3]} 64... Kb4 {[%clk 0:00:06.7]} 65. Ne4 {[%clk
0:00:17.2]} 65... Kb3 {[%clk 0:00:06.7]} 66. Nd2+ {[%clk 0:00:18.1]} 66... Kb2
{[%clk 0:00:07.6]} 67. Ne4 {[%clk 0:00:18.7]} 67... Rg8+ {[%clk 0:00:07.3]} 0-1